Cogmind - Beta 9.4 @@@ ROGUE MODE // 2020.03.03 @ 00:57:25 Player: David Result: Destroyed by G-47 Trooper with Particle Gun Performance ------------- Evolutions (3) 1500 Regions Visited (4) 800 Robots Destroyed (39) 195 Value Destroyed (1281) 1281 Prototype IDs (5) 100 Alien Tech Used (0) 0 Bonus (0) 0 TOTAL SCORE: 3876 Bonus ------- None Cogmind --------- Core Integrity 0/700 Matter 146/300 Energy 100/100 System Corruption 2% Temperature Cool (27) Movement Core (150) Ox2 Location -7/Factory Parts ------- > --- POWER (2) -------- (None) > --- PROPULSION (4) --- (None) > --- UTILITY (5) ------ Visual Processing Unit Visual Processing Unit > --- WEAPON (2) ------- Gauss Cannon > --- INVENTORY (4) ---- Micro Nuclear Core Advanced Weight Redist. System Microactuators Peak State ------------ > --- POWER ------------ Light Deuterium Engine Light Nuclear Core > --- PROPULSION ------- Improved Carbon-fiber Leg Improved Carbon-fiber Leg Improved Carbon-fiber Leg Improved Titanium Leg > --- UTILITY ---------- Compact Battery Visual Processing Unit Visual Processing Unit Advanced Targeting Computer Shield Generator > --- WEAPON ----------- Heavy Laser Gauss Rifle > --- INVENTORY -------- Advanced Weight Redist. System Lightning Gun Katana [Rating: 43] Favorites ----------- Power Light Nuclear Core Engine Ion Engine Power Core Light Nuclear Core Propulsion Improved Aluminum Leg Leg Improved Aluminum Leg Wheel Compact Wheel Hover Unit Hover Unit Flight Unit Improved Flight Unit Utility Visual Processing Unit Device Microactuators Storage Small Storage Unit Processor Visual Processing Unit Protection Light Armor Plating Weapon Improved EM Shotgun Energy Gun Improved EM Shotgun Energy Cannon Improved EM Pulse Cannon Ballistic Gun Gauss Rifle Ballistic Cannon Gauss Cannon Special Weapon Remote Datajack Slashing Weapon Katana Special Melee Weapon Datajack Build | -11 -10 -9 -8 -7 ------- Run | Scr Mat Mat Mat Fac Slots Evolved 6 | . . 2 2 2 Power 1 | . . . . 1 Propulsion 2 | . . 1 1 . Utility 3 | . . 1 1 1 Weapon . | . . . . . Parts Attached 70 | 6 5 25 12 22 Power 11 | 1 1 4 3 2 Engine 9 | 1 1 4 1 2 Core 2 | . . . 2 . Reactor . | . . . . . Propulsion 24 | 2 2 12 3 5 Treads . | . . . . . Leg 11 | . . 4 3 4 Wheel 4 | 2 . 2 . . Hover 3 | . 2 1 . . Flight 6 | . . 5 . 1 Utility 13 | 1 2 3 2 5 Device 3 | . . . . 3 Storage 5 | 1 1 2 . 1 Processor 4 | . 1 . 2 1 Hackware . | . . . . . Protection 1 | . . 1 . . Artifact . | . . . . . Weapon 22 | 2 . 6 4 10 Energy Gun 12 | 2 . 4 2 4 Energy Cannon 1 | . . . . 1 Ballistic Gun 1 | . . . . 1 Ballistic Cannon 3 | . . . . 3 Launcher . | . . . . . Special Weapon 1 | . . . . 1 Impact Weapon . | . . . . . Slashing Weapon 2 | . . . 2 . Piercing Weapon . | . . . . . Special Melee Weapon 2 | . . 2 . . Unidentified Prototypes 5 | . . 4 . 1 Parts Lost 14 | . . 2 2 10 Power 4 | . . 1 . 3 Propulsion 2 | . . . . 2 Utility 3 | . . . . 3 Weapon 5 | . . 1 2 2 Highest Loss Streak 3 | . . 1 1 3 Average Slot Usage (%) 78 | . 90 80 84 67 Engine 7 | . 14 10 6 3 Core 2 | . . . 2 5 Leg 14 | . . 5 23 19 Wheel 2 | . 3 7 . . Hover 3 | . 24 1 . . Flight 2 | . . 10 . . Device 1 | . . . . 3 Storage 7 | . 13 11 9 3 Processor 18 | . 6 11 26 22 Protection 1 | . . 3 . . Energy Gun 12 | . 28 16 13 2 Slashing Weapon 1 | . . . 3 2 Naked Turns . | . . . . . Heaviest Build 31 | 13 13 31 19 26 Greatest Support 54 | 32 32 32 54 54 Greatest Overweight (x) 4 | . 4 2 . 3 Average Overweight (x) . | . . . . . Largest Inventory Capacity 10 | 6 6 10 6 6 Average Capacity 5 | 4 5 7 6 4 Most Carried 6 | 2 6 6 6 6 Average Carried 3 | . 4 2 4 3 Final Capacity 6 | 6 6 6 6 4 Final Carried 6 | . 5 3 6 3 Class Distribution -------------------- 82% | Mutant 14% | Scavenger-Mutant Dominant Class ---------------- Mutant | -10/Materials Mutant | -9/Materials Mutant | -8/Materials Mutant | -7/Factory Resources | -11 -10 -9 -8 -7 ----------- Run | Scr Mat Mat Mat Fac Matter Collected 924 | 251 49 250 90 284 Remotely . | . . . . . Salvage Created 1594 | . 100 662 333 499 Parts 97 | . 9 44 15 29 Haulers Intercepted 4 | . 1 2 1 . Recyclers Shooed . | . . . . . Parts Field Recycled . | . . . . . Retrieved Matter . | . . . . . Parts Self-Destructed . | . . . . . Prevented . | . . . . . Kills | -11 -10 -9 -8 -7 ------- Run | Scr Mat Mat Mat Fac Combat Hostiles Destroyed 24 | . . 10 5 9 Melee 3 | . . . 3 . Guns 14 | . . 8 1 5 Cannons 2 | . . . . 2 AOE 4 | . . 1 1 2 Classes Destroyed 11 | . 3 4 . 4 Worker 3 | . . 3 . . Tunneler 1 | . . . . 1 Hauler 4 | . 1 2 1 . Operator 2 | . 1 1 . . Watcher 5 | . 1 2 1 1 Swarmer 3 | . . 3 . . Grunt 9 | . . 2 5 2 Brawler 1 | . . . . 1 Sentry 8 | . . 5 . 3 Hunter 1 | . . . . 1 Programmer 2 | . . . . 2 Best Kill Streak 7 | . 1 7 2 3 Combat Bots Only 5 | . . 5 2 2 Max Kills in Single Turn 2 | . 1 2 1 2 Gunslinging . | . . . . . Exploded 2 | . . 1 1 2 Melee 1 | . . . 1 . Uniques/NPCs Destroyed . | . . . . . Combat | -11 -10 -9 -8 -7 -------- Run | Scr Mat Mat Mat Fac Damage Taken 2992 | . 22 384 520 2066 Core 900 | . . 92 97 711 Absorbed by Shields 51 | . . . . 51 Core Remaining (%) 89 | 100 100 77 82 . Volleys Fired 113 | . 8 37 16 52 Largest 2 | . 2 2 2 2 Hottest 119 | . 80 101 90 119 Shots Fired 170 | . 16 49 25 80 Gun 142 | . 16 49 25 52 Cannon 27 | . . . . 27 Launcher . | . . . . . Special 1 | . . . . 1 Kinetic 47 | . . . . 47 Thermal 20 | . . 4 5 11 Explosive . | . . . . . Electromagnetic 102 | . 16 45 20 21 Robot Hit Streak 12 | . 3 12 6 8 Robot Miss Streak 4 | . 2 4 4 4 Penetration Max 1 | . . . . 1 Secondary Targets . | . . . . . Shots Hit Robots 131 | . 7 43 28 53 Core Hits 69 | . 4 27 15 23 Critical Hits 3 | . . . . 3 Critical Kills 1 | . . . . 1 Critical Parts Destroyed 2 | . . . . 2 Melee Attacks 15 | . . 3 11 1 Impact . | . . . . . Slashing 12 | . . . 11 1 Piercing . | . . . . . Sneak Attacks 3 | . . 3 . . Combat Hostiles . | . . . . . Follow-up Attacks . | . . . . . Damage Inflicted 3238 | . 122 872 816 1428 Guns 1696 | . 122 696 270 608 Cannons 617 | . . . . 617 Explosions 665 | . . 176 317 172 Melee 260 | . . . 229 31 Ramming . | . . . . . Kinetic 988 | . . . . 988 Thermal 689 | . . 227 367 95 Explosive 172 | . . . . 172 Electromagnetic 1129 | . 122 645 220 142 Impact . | . . . . . Slashing 260 | . . . 229 31 Piercing . | . . . . . Highest Corruption 2 | . . 2 . 2 Average Corruption 1 | . . 2 . 1 Corruption Purged . | . . . . . Effects 8 | . . 3 . 5 Message Errors 2 | . . . . 2 Energy Discharges 2 | . . . . 2 Data Loss (minor) 2 | . . 1 . 1 Targeting Errors 2 | . . 2 . . Overload Shots . | . . . . . Overflow Damage 79 | . . 10 24 45 Projectiles 32 | . . . . 32 Explosions 47 | . . 10 24 13 Melee . | . . . . . Knockbacks 1 | . . . . 1 Impact . | . . . . . Kinetic 1 | . . . . 1 Secondary . | . . . . . Self-Inflicted Damage 108 | . . 19 40 49 Shots 3 | . . 1 1 1 Rammed . | . . . . . Targets Rammed . | . . . . . Kicked . | . . . . . Crushed . | . . . . . Highest Temperature 276 | . 54 144 249 276 Average Temperature 79 | . 21 39 78 120 Received Heat Transfer 1061 | . 12 123 279 647 Siege Activations . | . . . . . Robots Corrupted 1 | . . 1 . . Combat Hostiles 1 | . . 1 . . Parts Fried 3 | . . 3 . . Impact Corruptions . | . . . . . Robots Melted . | . . . . . Combat Hostiles . | . . . . . Parts Melted . | . . . . . Heat Transferred 907 | . . 311 411 185 Parts Sabotaged . | . . . . . Parts Stolen . | . . . . . Parts Stripped . | . . . . . Power Chain Reactions 7 | . . 3 4 . Missiles Intercepted . | . . . . . Alert | -11 -10 -9 -8 -7 ------- Run | Scr Mat Mat Mat Fac Peak Influence 291 | . 49 291 150 265 Average Influence 97 | . 34 161 81 87 Maximum Alert Level 1 | . . 1 . 1 Low Security (%) 85 | 100 100 60 100 88 Level 1 14 | . . 39 . 11 Level 2 . | . . . . . Level 3 . | . . . . . Level 4 . | . . . . . Level 5 . | . . . . . High Security . | . . . . . Max Security . | . . . . . Squads Dispatched 6 | . . 1 . 5 Investigation . | . . . . . Extermination 1 | . . . . 1 Reinforcement 2 | . . 1 . 1 Assault . | . . . . . Garrison 3 | . . . . 3 Intercept . | . . . . . Construction Impeded 1 | . . . . 1 Haulers Reinforced . | . . . . . Stealth | -11 -10 -9 -8 -7 --------- Run | Scr Mat Mat Mat Fac Distress Signals 1 | . . 1 . . Communications Jammed . | . . . . . Distress Signals . | . . . . . Times Spotted 69 | . 4 19 19 27 Peak Tracking Total 8 | . 4 6 8 4 Tactical Retreats 15 | . . 3 3 9 Traps | -11 -10 -9 -8 -7 ------- Run | Scr Mat Mat Mat Fac Traps Triggered 4 | . . 1 2 1 Indirectly . | . . . . . Trap Hack Attempts . | . . . . . Triggered . | . . . . . Disarmed . | . . . . . Reprogrammed . | . . . . . Reused . | . . . . . Traps Extracted . | . . . . . Installed . | . . . . . Triggered . | . . . . . Machines | -11 -10 -9 -8 -7 ---------- Run | Scr Mat Mat Mat Fac Machines Disabled 8 | . 1 1 2 4 Max in Single Turn 3 | . 1 1 1 3 Machines Sabotaged . | . . . . . Garrisons Compromised . | . . . . . Overloaded Fab Kills . | . . . . . Fab Network Shutdowns . | . . . . . Hacking | -11 -10 -9 -8 -7 --------- Run | Scr Mat Mat Mat Fac Machines Accessed 11 | . 3 3 4 1 Terminals 8 | . 3 3 2 . Fabricators . | . . . . . Repair Stations 2 | . . . 2 . Recycling Units . | . . . . . Scanalyzers . | . . . . . Garrison Access 1 | . . . . 1 Total Hacks 21 | . 6 5 9 1 Successful 14 | . 4 3 7 . Failed 7 | . 2 2 2 1 Catastrophic 1 | . . . . 1 Database Lockouts . | . . . . . Manual . | . . . . . Terminals 14 | . 6 5 3 . Fabricators . | . . . . . Repair Stations 6 | . . . 6 . Recycling Units . | . . . . . Scanalyzers . | . . . . . Garrison Access 1 | . . . . 1 Terminal Hacks 10 | . 4 3 3 . Emergency Access Points 3 | . 2 1 . . Unreport Threat 1 | . . . 1 . Locate Traps 1 | . 1 . . . Maintenance Status 1 | . . . 1 . Hauler Manifests 1 | . 1 . . . Zone Layout 3 | . . 2 1 . Fabricator Hacks . | . . . . . Repair Station Hacks 4 | . . . 4 . Scan Component 2 | . . . 2 . Repair 2 | . . . 2 . Recycling Unit Hacks . | . . . . . Scanalyzer . | . . . . . Garrison Access Hacks . | . . . . . Unauthorized Hacks . | . . . . . Terminals . | . . . . . Fabricators . | . . . . . Repair Stations . | . . . . . Recycling Units . | . . . . . Scanalyzers . | . . . . . Garrison Access . | . . . . . Data Cores Recovered 1 | . 1 . . . Used 1 | . 1 . . . Hacking Detections 6 | . 1 1 3 1 Full Trace Events . | . . . . . Feedback Events . | . . . . . Feedback Blocked . | . . . . . Robot Schematics Acquired . | . . . . . Robots Built . | . . . . . Matter . | . . . . . Time . | . . . . . Total Robot Build Rating . | . . . . . Part Schematics Acquired . | . . . . . Parts Built . | . . . . . Matter . | . . . . . Time . | . . . . . Total Part Build Rating . | . . . . . Parts Repaired 2 | . . . 2 . Time 83 | . . . 83 . Parts Recycled . | . . . . . Recycled Matter . | . . . . . Retrieved Matter . | . . . . . Retrieved Components . | . . . . . Parts Scanalyzed . | . . . . . Part Schematics Acquired . | . . . . . Parts Damaged . | . . . . . Bothacking | -11 -10 -9 -8 -7 ------------ Run | Scr Mat Mat Mat Fac Used RIF Installer . | . . . . . Robots Hacked 3 | . . 2 . 1 Non-combat 2 | . . 2 . . Combat 1 | . . . . 1 Robot Hacks Applied 3 | . . 2 . 1 parse_system 1 | . . . . 1 no_distress 2 | . . 2 . . Relay Couplers Released . | . . . . . Robots Rewired . | . . . . . Allies Hacked . | . . . . . Hacks Repelled . | . . . . . Allies | -11 -10 -9 -8 -7 -------- Run | Scr Mat Mat Mat Fac Total Allies . | . . . . . Largest Group . | . . . . . Highest-Rated Group . | . . . . . Highest-Rated Ally . | . . . . . Total Orders . | . . . . . Ally Attacks . | . . . . . Total Damage . | . . . . . Kills . | . . . . . Allies Corrupted . | . . . . . Allies Melted . | . . . . . Intel | -11 -10 -9 -8 -7 ------- Run | Scr Mat Mat Mat Fac Robot Analysis Total . | . . . . . Derelict Logs Recovered . | . . . . . Drone Launches . | . . . . . Drone Recoveries . | . . . . . Exploration | -11 -10 -9 -8 -7 ------------- Run | Scr Mat Mat Mat Fac Turns Passed 2133 | 75 218 576 552 712 Spaces Moved 1578 | 65 280 458 306 469 Core 102 | 2 1 . . 99 Treads . | . . . . . Legs 764 | . . 88 306 370 Wheels 219 | 63 20 136 . . Hover 274 | . 259 15 . . Flight 219 | . . 219 . . Fastest Speed 32 | 50 56 32 120 50 Average Speed 94 | 98 59 77 120 112 Slowest Speed 250 | 100 250 200 120 200 Overloaded Moves . | . . . . . Propulsion Burnouts . | . . . . . Robots Hopped . | . . . . . Cave-ins Triggered . | . . . . . Exploration Rate (%) 23 | 3 35 38 27 15 Regions Visited 4 Branch Regions . Pre-discovered Areas . | . . . . . Known Exits Taken . | . . . . . Unknown Exits Taken 4 | 1 1 1 1 . Scrap Searched . | . . . . . Spaces Dug . | . . . . . Terrain Destroyed 62 | . . 12 32 18 Melee . | . . . . . Projectile 1 | . . . . 1 AOE 61 | . . 12 32 17 Actions | -11 -10 -9 -8 -7 --------- Run | Scr Mat Mat Mat Fac Total 2046 | 76 315 631 449 575 Wait 175 | . 14 69 91 1 Move 1574 | 64 279 457 305 469 Hop . | . . . . . Pick Up 55 | 6 6 18 12 13 Fast Attach 11 | . . 1 2 8 Attach 46 | 6 4 15 9 12 Detach 5 | . 3 2 . . Swap 13 | . 1 9 1 2 Drop 39 | . . 20 2 17 Fire 113 | . 8 37 16 52 Melee 15 | . . 3 11 1 Ram . | . . . . . Kick . | . . . . . Crush . | . . . . . Escape Stasis . | . . . . . Rewire . | . . . . . Trap . | . . . . . Miscellaneous . | . . . . . Route ------- -11/Scrapyard -10/Materials (discovered 2 exits: *Mat / [*Min]) -9/Materials -8/Materials -7/Factory (discovered 1 exit: [*Sto]) History --------- Turn | Location | Event 9 | -11/Scrapyard | Discovered new exit (range 16) 76 | -11/Scrapyard | Entered Materials 192 | -10/Materials | Discovered new exit (range 17) 230 | -10/Materials | Discovered new exit (range 8) 294 | -10/Materials | Entered another Materials area 294 | -9/Materials | Evolved 2 slots: Propulsion x1, Utility x1 660 | -9/Materials | Discovered new exit (range 6) 870 | -9/Materials | Entered another Materials area 870 | -8/Materials | Evolved 2 slots: Propulsion x1, Utility x1 972 | -8/Materials | Build established: Mutant 989 | -8/Materials | Repaired Imp. EM Shotgun 1369 | -8/Materials | Repaired Imp. Aluminum Leg 1395 | -8/Materials | Discovered new exit (range 21) 1422 | -8/Materials | Entered Factory 1422 | -7/Factory | Evolved 2 slots: Power x1, Utility x1 1789 | -7/Factory | Lost 3 parts (1p1u1w) 2062 | -7/Factory | Core integrity fell below 50% 2091 | -7/Factory | Discovered new exit (range 8) 2115 | -7/Factory | Core integrity fell below 20% 2134 | -7/Factory | Destroyed by G-47 Trooper with Particle Gun Last Messages --------------- 02027_ Destroyed Gatling Laser. 02030_ System corrupted: Energy discharge (-92). 02030_ Y-54 Guardian suffers critical hit. 02030_ Y-54 Guardian destroyed. 02030_ Slug penetrates Wall. 02033_ Dropped Imp. Sensor Array. 02033_ Dropped Gauss Cannon. 02050_ Acquired Gauss Cannon. 02057_ Acquired Mic. Nuclear Core. 02070_ Imp. Deuterium Engine destroyed. 02083_ System corrupted: Energy discharge (-27). 02091_ EXIT=FOUND 02095_ Acquired Prototype Flight Unit. 02095_ Identified Cld. VTOL Module. 02095_ Malfunction: Adv. Targeting Computer damaged (-8). 02097_ Dropped Faulty Cld. VTOL Module. 02118_ Destroyed Gatling Laser. 02120_ Y-54 Guardian destroyed. 02124_ Acquired 41 matter. 02134_ Adv. Targeting Computer destroyed. Map ----- +----------------------------------------------------+ | ?????????????????????????????????????????????? | | ?????????????????????????????????????????????? | | ?????????????????????????????????????????????? | | ?????????????????????????????????????????????? | | ?????????????????????????????????????????????? | | ?????????????????????????????????????????????? | | ?????????????????????????????????????????????? | | ?????????????????????????????????????????????? | | ?????????????????????????????????????????????? | | ?????????????????????????????????????????????? | | ?????????????????????????????????????????????? | | ?????????????????????????????????????????????? | | ?????????????????????????????????????????????? | | ?????????????????????????????????????????????? | | ?????????????????????????????????????????????? | | ????????????????###########??????????????????? | | ????????????????# #??????????????????? | | ????????????????# = """ #??????????????????? | | ????????????????# """ #??????????????????? | | ????????????????# """ #??????????????????? | | ????????????????#"S #??????????????????? | | ????????????????#""" ! #??????????????????? | | #?????????####### "" #??????????????????? | | #????###+## ?# #??????????????????? | | #????# #####+###### #####?????????? | | ###### g @ < #????? | | ###### #####?????????? | | Y #??????????????????????? | | ####### #??????????????????????? | | #### #?????# #??????????????????????? | | #??# #?????# #??????????????????????? | | #??# #######/##?????????????????????? | | #??# # #?????????????????????? | | #??# # #?????????????????????? | | #??# # #?????????????????????? | | #??# # #?????????????????????? | | #??# # #?????????????????????? | | ###### / #?????????????????????? | | # # #?????????????????????? | | # # #?????????????????????? | | ## # #?????????????????????? | | ## ##########?????????????????????? | | ## #?????????????????????????????? | | + #?????????????????????????????? | | ## #?????????????????????????????? | | ####### #?????????????????????????????? | | #?????# #?????????????????????????????? | | ######?????# #?????????????????????????????? | | ???????????# #?????????????????????????????? | | ???????????# #?????????????????????????????? | +----------------------------------------------------+ Best States ------------- Heat Dissipation 34 Energy Generation 23 Energy Capacity 500 Matter Stores 300 Matter Capacity 300 Sight Range 22 Robot Scan Range 13 Terrain Scan Density 10 Armor Coverage 150 Melee Speed Boost 20 Evasion (%) 63 Targeting Accuracy 8 Item Schematics ----------------- None Robot Schematics ------------------ None Fabricated ------------ Nothing Alien Tech Used ----------------- None Achievements -------------- Everything Is Under Control Challenges ------------ None Game ------ Seed ThrusterDirtyTriangulator Manual? 0 Play Time 00:38:54 Cumulative 38.4 hours Start 2020.03.03 @ 00:21:24 End 2020.03.03 @ 00:57:25 Sessions 1 Manual Loads 0 Difficulty Rogue Special Mode None Game No. 56 Rogue 56 Adventurer 0 Explorer 0 Win Type - Total 0 Types 0/0/0/0/0/0/0 Lore% 26 Gallery% 34 Achievement% 17 Wizard Run 0 Options --------- ASCII 0 Keyboard 0 Movement Mouse Keybinds 0 Fullscreen 1 Font 18/Smallcaps Map View 76x50 Tactical HUD 1 Map Filters NONE Filters NONE Steam 1 RUN: 44bdd06b-166c-4527-88b2-6485d69fd58c